bitfinex-derivatives/quotes_SOLF0:USTF0_20251006
["timestamp","ask_amount","ask_price","bid_price","bid_amount"]
[1759730122634,3.41149757,232.34,232.33,3.38876591]
[1759730124032,3.8723,232.35,232.33,7.30876591]
[1759730124236,7.28265398,232.35,232.33,3.92]
[1759730124828,3.41035398,232.35,232.34,3.38777874]
[1759730125029,106.58,232.36,232.34,7.30777874]
[1759730125230,106.58,232.36,232.35,3.38576239]
[1759730125930,3.8717,232.39,232.35,3.38576239]
[1759730126135,117.9817,232.39,232.36,3.92]
[1759730126337,3.40766346,232.38,232.36,3.92]
[1759730126938,3.40766346,232.38,232.33,3.92]
[1759730127137,58.52,232.39,232.35,3.92]
[1759730127338,58.52,232.39,232.33,3.92]
[1759730127643,66.09,232.39,232.34,3.38245367]
[1759730127843,7.57,232.38,232.35,7.30245367]
[1759730128035,7.57,232.38,232.35,3.92]
[1759730128638,7.57,232.38,232.35,17.00706197]
[1759730129037,7.57,232.38,232.36,3.38091017]
[1759730129235,7.57,232.38,232.35,17.00706197]
[1759730130438,7.57,232.44,232.36,7.29780277]
[1759730130733,7.57,232.44,232.37,3.37780277]
[1759730130940,7.57,232.44,232.38,3.37780277]
[1759730131139,11.4411,232.43,232.39,3.37780277]
[1759730131334,11.4411,232.43,232.36,3.92]
[1759730131536,11.4411,232.43,232.37,3.37515126]
[1759730131729,11.4411,232.43,232.39,3.92]
[1759730131935,7.57,232.42,232.39,3.92]
[1759730132638,7.57,232.42,232.35,13.08706197]
[1759730132840,11.4411,232.43,232.36,7.29356671]
[1759730133039,11.4411,232.43,232.37,3.37356671]
[1759730133239,7.57,232.42,232.38,7.29356671]
[1759730133440,7.57,232.42,232.38,3.92]
[1759730133842,3.8711,232.43,232.38,3.92]
[1759730134341,67.7456,232.43,232.35,13.1594883]
[1759730134644,7.53,232.41,232.32,3.91]
[1759730134839,7.53,232.39,232.33,3.37273125]
[1759730135042,7.53,232.39,232.32,3.91]
[1759730135241,7.53,232.39,232.33,3.37248263]
[1759730135445,7.53,232.39,232.32,16.74061659]
[1759730135748,11.4019,232.37,232.33,7.28247162]
[1759730135948,11.4019,232.37,232.33,3.91]
[1759730137452,3.8719,232.37,232.32,12.83061659]
[1759730137653,7.53,232.36,232.33,3.3722184]
[1759730137852,3.8719,232.37,232.32,12.88482334]
[1759730138047,7.53,232.36,232.33,3.37159285]
[1759730138351,7.53,232.36,232.34,3.37159285]
[1759730138544,7.53,232.36,232.29,3.5762141]
[1759730138747,7.53,232.45,232.33,3.91]
[1759730138944,7.53,232.45,232.35,3.91]
[1759730139149,3.8708,232.44,232.37,3.91]
[1759730139350,7.53,232.45,232.38,3.36958766]
[1759730139550,7.53,232.45,232.37,3.91]
[1759730139747,7.53,232.45,232.38,3.36958233]
[1759730139953,7.53,232.45,232.37,3.91]
[1759730140546,3.8711,232.43,232.37,3.91]
[1759730143950,3.8712,232.42,232.37,3.91]
[1759730144156,7.53,232.41,232.37,3.91]
[1759730144657,7.53,232.41,232.34,3.91]
[1759730144857,7.53,232.41,232.35,3.35575945]
[1759730145057,7.53,232.41,232.37,3.91]
[1759730145863,7.53,232.4,232.33,9.71154553]
[1759730146055,7.53,232.4,232.34,3.35508056]
[1759730146261,7.53,232.45,232.35,3.35508056]
[1759730146464,7.53,232.45,232.36,3.35508056]
[1759730146661,7.53,232.45,232.37,3.35508056]
[1759730146862,7.53,232.45,232.33,7.7826]
[1759730147066,7.53,232.45,232.34,3.35540731]
[1759730147263,7.53,232.45,232.35,3.35540731]
[1759730147466,67.7417,232.45,232.36,3.35540731]
[1759730147664,67.7417,232.45,232.33,3.91]
[1759730147865,67.7417,232.45,232.34,3.35553756]
[1759730148064,11.1415,232.4,232.36,3.91]
[1759730148265,11.1415,232.4,232.37,3.35548444]
[1759730148465,11.1415,232.4,232.36,3.91]
[1759730148665,11.1415,232.4,232.37,3.35530193]
[1759730148864,11.1415,232.4,232.36,3.91]
[1759730149066,11.1415,232.4,232.37,3.3551571]
[1759730149266,11.1415,232.4,232.38,3.3551571]
[1759730149570,11.1415,232.4,232.36,3.91]
[1759730149769,11.1415,232.4,232.37,3.35523234]
[1759730149970,11.1415,232.4,232.38,3.35523234]
[1759730150165,11.1415,232.4,232.36,3.91]
[1759730150371,11.1415,232.4,232.37,3.35541909]
[1759730150570,11.1415,232.4,232.38,3.35541909]
[1759730150768,11.1415,232.4,232.34,3.91]
[1759730150970,3.8715,232.4,232.36,3.91]
[1759730151166,7.27,232.39,232.37,3.35541445]
[1759730151367,11.1415,232.4,232.38,3.35541445]
[1759730151569,11.1415,232.4,232.36,3.91]
[1759730151766,3.8711,232.43,232.37,7.26580278]
[1759730151967,7.27,232.45,232.39,3.91]
[1759730152468,7.27,232.45,232.34,3.91]
[1759730152666,7.27,232.45,232.35,3.35610149]
[1759730152869,7.27,232.45,232.36,7.26610149]
[1759730153067,7.27,232.45,232.37,3.35610149]
[1759730153272,7.27,232.45,232.38,3.35610149]
[1759730153475,7.27,232.45,232.35,3.91]
[1759730153670,7.27,232.45,232.36,3.3566826]
[1759730153970,7.27,232.45,232.37,3.3566826]
[1759730154164,7.27,232.45,232.38,3.3566826]
[1759730154371,3.8712,232.42,232.39,3.3566826]
[1759730154572,7.27,232.41,232.35,3.91]
[1759730154774,7.27,232.42,232.36,7.2673651]
[1759730154972,7.27,232.45,232.37,3.3573651]
[1759730155172,7.27,232.45,232.38,3.3573651]
[1759730155374,7.27,232.45,232.39,3.3573651]
[1759730155573,3.8714,232.41,232.36,3.91]
[1759730155773,7.27,232.4,232.37,3.35806891]
[1759730155968,7.27,232.4,232.38,3.35806891]
[1759730156168,7.27,232.4,232.39,3.35806891]
[1759730157774,3.8717,232.39,232.33,3.5762141]
[1759730157965,7.27,232.38,232.34,7.26987227]
[1759730158165,7.27,232.38,232.35,7.26987227]
[1759730158371,7.27,232.38,232.36,3.35987227]
[1759730158574,7.27,232.38,232.37,3.35987227]
[1759730159972,3.8717,232.39,232.37,3.35987227]
[1759730160172,3.8717,232.39,232.38,3.35987227]
[1759730160572,11.1413,232.41,232.38,3.35987227]
[1759730160776,11.1413,232.41,232.39,3.35987227]
[1759730160976,11.1413,232.41,232.35,3.91]
[1759730161174,11.1413,232.41,232.36,3.36246402]
[1759730161377,11.1413,232.41,232.38,3.91]
[1759730161577,11.1413,232.41,232.39,3.36246402]
[1759730161775,11.1413,232.41,232.4,3.36246402]
[1759730164773,7.27,232.5,232.4,3.36246402]
[1759730165079,7.27,232.45,232.41,3.36246402]
[1759730165275,1.23231471,232.46,232.42,3.36246402]
[1759730165480,7.27,232.44,232.43,3.36246402]
[1759730170581,3.8709,232.44,232.4,3.91]
[1759730170780,11.1409,232.44,232.4,3.91]
[1759730171778,3.8709,232.44,232.4,3.91]
[1759730172077,11.1409,232.44,232.4,3.91]
[1759730172682,7.27,232.43,232.4,3.91]
[1759730173383,7.27,232.43,232.39,3.5762141]
[1759730173579,3.8709,232.44,232.4,3.91]
[1759730173783,11.1409,232.44,232.4,3.91]
[1759730174184,3.8709,232.44,232.4,3.91]
[1759730174384,7.27,232.43,232.4,3.91]
[1759730175185,7.27,232.43,232.4,7.4862141]
[1759730178087,7.27,232.43,232.41,3.91]
[1759730179293,11.141,232.43,232.4,3.5762141]
[1759730179493,11.141,232.43,232.41,3.91]
[1759730179794,7.27,232.43,232.41,3.91]
[1759730181588,7.24,232.43,232.41,3.91]
[1759730183294,7.24,232.43,232.41,7.4862141]
[1759730184297,3.43776082,232.44,232.42,3.91]
[1759730184496,14.54846082,232.45,232.42,3.91]
[1759730184697,3.43776082,232.44,232.42,3.91]
[1759730184908,10.67776082,232.44,232.42,3.91]
[1759730185701,3.43776082,232.43,232.42,3.91]
[1759730185895,7.24,232.44,232.42,3.91]
[1759730186292,10.67776082,232.44,232.42,3.91]
[1759730186498,3.43776082,232.43,232.42,3.91]
[1759730186695,7.24,232.44,232.42,3.91]
[1759730186903,7.24,232.43,232.42,3.5762141]
[1759730187701,3.43776082,232.44,232.43,3.91]
[1759730188011,3.43776082,232.46,232.44,3.91]
[1759730188207,7.24,232.47,232.44,7.4862141]
[1759730189003,10.67776082,232.47,232.44,7.4862141]
[1759730189208,3.43776082,232.46,232.44,7.4862141]
[1759730189406,7.24,232.47,232.44,7.4862141]
[1759730191309,7.24,232.47,232.44,3.91]
[1759730194309,7.24,232.47,232.44,7.4862141]
[1759730196310,7.30796082,232.48,232.44,3.5762141]
[1759730196907,7.93,232.47,232.44,3.5762141]
[1759730197111,7.93,232.46,232.44,3.5762141]
[1759730197614,7.93,232.46,232.44,7.4762141]
[1759730198917,7.93,232.46,232.44,3.9]
[1759730203212,3.43776082,232.47,232.43,3.5762141]
[1759730203426,3.8702,232.48,232.46,3.9]
[1759730203917,11.8002,232.48,232.46,3.9]
[1759730204118,7.93,232.47,232.45,3.5762141]
[1759730207218,7.93,232.47,232.44,7.4762141]
[1759730207418,3.47936229,232.48,232.44,3.5762141]
[1759730207720,7.93,232.48,232.45,7.4762141]
[1759730208422,7.86,232.48,232.45,7.4762141]
[1759730208724,1.23231471,232.52,232.46,3.9]
[1759730209121,4.71127773,232.52,232.46,3.9]
[1759730209514,3.47896302,232.52,232.46,7.4762141]
[1759730209718,3.47896302,232.52,232.46,11.3465141]
[1759730210222,3.47896302,232.52,232.46,7.4762141]
[1759730210813,7.86,232.52,232.46,3.5762141]
[1759730211014,7.86,232.52,232.39,35.08550798]
[1759730211015,1.23231471,232.47,232.44,3.5762141]
[1759730211221,5.10271471,232.47,232.44,3.5762141]
[1759730211422,7.86,232.46,232.44,3.5762141]
[1759730211623,5.10271471,232.47,232.44,3.5762141]
[1759730211924,7.86,232.46,232.44,3.5762141]
[1759730212125,5.10271471,232.47,232.44,3.5762141]
[1759730212321,7.86,232.46,232.44,3.5762141]
[1759730212727,7.86,232.46,232.43,3.5762141]
[1759730212928,5.10271471,232.47,232.43,3.5762141]
[1759730213318,7.86,232.46,232.43,3.5762141]
[1759730214230,7.86,232.46,232.44,3.5762141]
[1759730215530,3.8704,232.47,232.44,3.5762141]
[1759730215833,7.86,232.46,232.44,3.5762141]
[1759730216232,3.8704,232.47,232.44,3.5762141]
[1759730216438,7.86,232.46,232.44,3.5762141]
[1759730216734,3.8704,232.47,232.44,3.5762141]
[1759730217034,7.86,232.46,232.44,3.5762141]
[1759730217532,7.86,232.46,232.43,3.5762141]
[1759730217732,3.8704,232.47,232.43,3.5762141]
[1759730217924,7.86,232.46,232.43,3.5762141]
[1759730218126,3.8704,232.47,232.43,3.5762141]
[1759730219135,7.86,232.46,232.43,3.5762141]
[1759730219338,3.8704,232.47,232.43,3.5762141]
[1759730219533,7.86,232.46,232.43,3.5762141]
[1759730219734,3.8704,232.47,232.43,3.5762141]
[1759730219934,7.86,232.46,232.43,3.5762141]
[1759730220132,3.8705,232.46,232.43,3.5762141]
[1759730220336,7.86,232.45,232.43,3.5762141]
[1759730225240,7.86,232.45,232.44,3.5762141]
[1759730230141,7.86,232.45,232.42,3.5762141]
[1759730230142,7.86,232.43,232.42,3.5762141]
[1759730231243,7.86,232.43,232.4,8.64213121]
[1759730232838,7.86,232.43,232.41,3.9]
[1759730235444,7.86,232.43,232.4,4.74213121]
[1759730235445,7.86,232.42,232.4,4.74213121]
[1759730235641,7.86,232.42,232.37,11.15449365]
[1759730235642,7.86,232.42,232.39,4.74213121]
[1759730236344,3.8709,232.43,232.39,4.74213121]
[1759730236546,11.7309,232.43,232.42,3.56328882]
[1759730236742,15.23624271,232.43,232.42,3.56328882]
[1759730236940,3.8713,232.41,232.4,3.56328882]
[1759730237247,11.7313,232.41,232.4,3.56328882]
[1759730237445,15.23664271,232.41,232.4,3.56328882]
[1759730238445,3.871,232.43,232.39,3.56328882]
[1759730238646,7.48,232.42,232.4,3.56328882]
[1759730239047,3.871,232.43,232.4,3.56328882]
[1759730239442,7.48,232.42,232.4,3.56328882]
[1759730239642,3.871,232.43,232.4,3.56328882]
[1759730240052,7.48,232.42,232.4,3.56328882]
[1759730240239,3.871,232.43,232.4,3.56328882]
[1759730240443,7.48,232.42,232.4,3.56328882]
[1759730240644,3.871,232.43,232.4,3.56328882]
[1759730240942,7.48,232.42,232.4,3.56328882]
[1759730241249,3.871,232.43,232.4,3.56328882]
[1759730241641,7.48,232.42,232.4,3.56328882]
[1759730242046,3.871,232.43,232.4,3.56328882]
[1759730242246,7.48,232.42,232.4,3.56328882]
[1759730242651,3.871,232.43,232.4,3.56328882]
[1759730242851,3.8706,232.45,232.41,3.56328882]
[1759730243351,7.48,232.44,232.41,3.56328882]
[1759730244452,3.8706,232.45,232.41,3.56328882]
[1759730244752,7.48,232.44,232.41,3.56328882]
[1759730245351,3.8706,232.45,232.41,3.56328882]
[1759730245845,3.36439369,232.46,232.41,3.56328882]
[1759730246048,7.48,232.45,232.42,3.91]
[1759730246447,7.48,232.45,232.42,7.47328882]
[1759730247250,7.48,232.45,232.42,3.91]
[1759730247946,7.48,232.46,232.42,3.91]
[1759730248152,3.36439369,232.47,232.41,3.56328882]
[1759730249054,3.8705,232.46,232.41,3.56328882]
[1759730249353,7.48,232.46,232.41,3.56328882]
[1759730249849,3.8707,232.45,232.41,3.56328882]
[1759730250748,7.48,232.44,232.41,3.56328882]
[1759730250947,3.8707,232.45,232.41,3.56328882]
[1759730251450,7.48,232.44,232.41,3.56328882]
[1759730252153,3.8707,232.45,232.41,3.56328882]
[1759730252353,7.48,232.44,232.41,3.56328882]
[1759730252750,3.8707,232.45,232.41,3.56328882]
[1759730252950,7.48,232.44,232.41,3.56328882]
[1759730253152,3.8707,232.45,232.41,3.56328882]
[1759730253455,7.48,232.44,232.41,3.56328882]
[1759730253649,3.8707,232.45,232.41,3.56328882]
[1759730254046,7.74,232.44,232.41,3.56328882]
[1759730254447,3.8707,232.45,232.41,3.56328882]
[1759730254647,7.74,232.44,232.41,3.56328882]
[1759730254847,7.74,232.42,232.41,3.56328882]
[1759730255057,7.74,232.46,232.4,3.56328882]
[1759730255455,3.8712,232.42,232.4,3.56328882]
[1759730255661,7.74,232.41,232.4,3.56328882]
[1759730264068,7.74,232.4,232.39,3.56328882]
[1759730266673,3.871,232.43,232.39,3.56328882]
[1759730267475,7.74,232.42,232.39,3.56328882]
[1759730267774,3.871,232.43,232.39,3.56328882]
[1759730268776,7.78,232.42,232.39,3.56328882]
[1759730268975,3.871,232.43,232.39,3.56328882]
[1759730270180,7.78,232.42,232.39,3.56328882]
[1759730270381,3.871,232.43,232.39,3.56328882]
[1759730270681,7.78,232.42,232.39,3.56328882]
[1759730270880,3.871,232.43,232.39,3.56328882]
[1759730271075,7.78,232.42,232.39,3.56328882]
[1759730271277,3.871,232.43,232.39,3.56328882]
[1759730271884,7.78,232.42,232.39,3.56328882]
[1759730272271,3.871,232.43,232.39,3.56328882]
[1759730272673,7.78,232.42,232.39,3.56328882]
[1759730272873,3.871,232.43,232.39,3.56328882]
[1759730273285,7.78,232.41,232.39,3.56328882]
[1759730273487,7.78,232.41,232.4,3.56328882]
[1759730275594,7.78,232.41,232.34,7.25449365]
[1759730275595,105.14,232.5,232.41,3.91]
[1759730275887,7.78,232.48,232.42,3.55933441]
[1759730276683,11.6502,232.48,232.42,3.55933441]
[1759730276883,7.78,232.46,232.42,3.55933441]
[1759730277292,7.78,232.46,232.43,3.91]
[1759730278087,7.26554397,232.47,232.43,3.91]
[1759730278284,7.78,232.46,232.43,3.91]
[1759730278487,11.17524397,232.46,232.43,3.91]
[1759730278786,3.39524397,232.45,232.43,3.91]
[1759730278986,7.78,232.46,232.43,3.91]
[1759730278987,11.17524397,232.46,232.43,3.91]
[1759730281082,3.39524397,232.46,232.42,3.55933441]
[1759730281286,7.78,232.48,232.42,3.55933441]
[1759730282691,11.6507,232.45,232.42,7.46933441]
[1759730283596,3.8709,232.44,232.42,7.46933441]
[1759730283785,11.6509,232.44,232.42,3.55933441]
[1759730284388,7.78,232.43,232.42,3.55933441]
[1759730284788,3.8711,232.42,232.41,3.55933441]
[1759730285092,11.6511,232.42,232.41,3.55933441]
[1759730286292,7.78,232.41,232.4,3.55933441]
[1759730298411,3.8714,232.4,232.39,3.55933441]
[1759730298611,11.2514,232.4,232.39,3.55933441]
[1759730302413,11.2514,232.4,232.38,3.55933441]
[1759730304010,7.38,232.39,232.38,3.55933441]
[1759730305006,7.38,232.38,232.36,4.74213121]
[1759730305412,3.8717,232.39,232.36,4.74213121]
[1759730305615,7.38,232.38,232.36,4.74213121]
[1759730305807,3.8717,232.39,232.36,4.74213121]
[1759730306013,11.2517,232.39,232.38,3.56061764]
[1759730307113,11.2517,232.39,232.33,3.91]
[1759730307114,7.38,232.38,232.37,3.56061764]
[1759730311715,11.2519,232.37,232.36,3.56061764]
[1759730312706,11.2519,232.37,232.33,8.65213121]
[1759730312707,3.8719,232.37,232.35,3.56061764]
[1759730312916,7.38,232.36,232.35,3.56061764]
[1759730313412,11.2522,232.36,232.34,3.56061764]
[1759730313617,7.53,232.35,232.34,3.56061764]
[1759730314814,105.1,232.37,232.34,3.56061764]
[1759730315014,7.53,232.36,232.34,3.56061764]
[1759730315614,105.1,232.37,232.34,3.56061764]
[1759730315816,7.53,232.36,232.34,3.56061764]
[1759730316218,105.1,232.37,232.34,3.56061764]
[1759730316514,7.53,232.36,232.34,3.56061764]
[1759730316721,108.972,232.37,232.34,3.56061764]
[1759730317016,7.53,232.36,232.34,3.56061764]
[1759730317314,108.972,232.37,232.33,3.56061764]
[1759730317718,7.53,232.36,232.33,3.56061764]
[1759730318423,108.972,232.37,232.33,3.56061764]
[1759730318815,7.53,232.36,232.33,7.47061764]
[1759730319818,108.972,232.37,232.33,7.47061764]
[1759730320018,7.53,232.36,232.33,7.47061764]
[1759730320216,108.972,232.37,232.33,7.47061764]
[1759730320921,7.53,232.36,232.33,7.47061764]
[1759730321722,108.972,232.37,232.33,7.47061764]
[1759730321919,3.8716,232.39,232.34,3.56061764]
[1759730322223,105.1,232.37,232.36,3.91]
[1759730322418,85.45,232.38,232.36,3.91]
[1759730322621,7.53,232.37,232.34,7.46529084]
[1759730326125,7.53,232.37,232.35,3.55529084]
[1759730327424,77.92,232.38,232.35,3.55529084]
[1759730327627,7.3,232.37,232.35,3.55529084]
[1759730327825,77.92,232.38,232.33,3.55529084]
[1759730328218,7.3,232.37,232.33,3.55529084]
[1759730328423,77.92,232.38,232.33,3.55529084]
[1759730328624,3.8721,232.36,232.33,3.55529084]
[1759730328831,7.3,232.35,232.33,7.46529084]
[1759730335233,3.8721,232.36,232.34,3.91]
[1759730335431,11.1721,232.36,232.34,3.91]
[1759730336232,7.3,232.35,232.34,3.91]
[1759730336829,7.3,232.35,232.33,3.55529084]
[1759730337334,7.3,232.35,232.33,7.46529084]
[1759730338829,89.0918,232.38,232.33,3.55529084]
[1759730339133,7.3,232.37,232.35,3.91]
[1759730339333,7.3,232.37,232.34,7.46529084]
[1759730339536,81.7918,232.38,232.34,7.46529084]
[1759730339933,7.3,232.37,232.34,7.46529084]
[1759730340726,81.7918,232.38,232.34,3.55529084]
[1759730340932,7.3,232.37,232.34,3.55529084]
[1759730341935,81.7918,232.38,232.34,3.55529084]
[1759730342130,7.3,232.37,232.34,3.55529084]
[1759730342334,7.3,232.37,232.34,7.46529084]
[1759730342635,81.7918,232.38,232.34,7.46529084]
[1759730342837,7.3,232.37,232.34,7.46529084]
[1759730343037,7.3,232.37,232.34,3.55529084]
[1759730343438,81.7918,232.38,232.34,3.55529084]
[1759730343833,7.3,232.37,232.34,3.55529084]
[1759730344538,81.7918,232.38,232.34,3.55529084]
[1759730344737,7.3,232.37,232.34,3.55529084]
[1759730344938,3.872,232.37,232.34,3.55529084]
[1759730345838,7.3,232.36,232.34,3.55529084]
[1759730346038,3.872,232.37,232.34,3.55529084]
[1759730346229,7.3,232.36,232.35,3.55529084]
[1759730351339,313.2,232.5,232.33,4.74213121]
[1759730351539,7.3,232.43,232.37,3.56450335]
[1759730351739,10.68160514,232.43,232.37,3.56450335]
[1759730353143,3.8715,232.4,232.37,3.56450335]
[1759730353641,7.3,232.39,232.37,3.56450335]
[1759730353844,3.8715,232.4,232.37,3.56450335]
[1759730355340,7.3,232.39,232.37,3.56450335]
[1759730355542,3.8715,232.4,232.37,3.56450335]
[1759730355739,7.3,232.39,232.37,3.56450335]
[1759730356445,3.8715,232.4,232.37,3.56450335]
[1759730356847,7.3,232.39,232.37,3.56450335]
[1759730357240,3.8715,232.4,232.37,3.56450335]
[1759730357737,7.22,232.39,232.37,3.56450335]
[1759730358249,3.8715,232.4,232.37,3.56450335]
[1759730358546,7.22,232.39,232.37,3.56450335]
[1759730359642,112.24,232.38,232.34,3.56450335]
[1759730359839,112.24,232.38,232.33,3.56450335]
[1759730360041,7.22,232.36,232.32,3.56450335]
[1759730360443,3.8723,232.35,232.32,3.56450335]
[1759730360839,7.22,232.34,232.32,3.56450335]
[1759730361042,7.22,232.36,232.33,3.91]
[1759730361244,7.22,232.36,232.34,7.47450335]
[1759730361636,24.02,232.37,232.34,7.47450335]
[1759730362746,31.24,232.37,232.35,3.56450335]
[1759730363448,7.22,232.37,232.35,3.56450335]
[1759730364650,3.8719,232.37,232.35,3.56450335]
[1759730364950,3.8719,232.37,232.34,3.56450335]
[1759730365146,7.22,232.36,232.34,3.56450335]
[1759730365347,3.8719,232.37,232.34,3.56450335]
[1759730365650,7.22,232.36,232.34,3.56450335]
[1759730367543,3.8719,232.37,232.34,3.56450335]
[1759730367747,7.22,232.36,232.34,3.56450335]
[1759730368654,108.8916,232.39,232.34,3.56450335]
[1759730368855,7.22,232.38,232.35,3.91]
[1759730369255,108.8916,232.39,232.35,3.91]
[1759730369551,7.22,232.38,232.35,3.91]
[1759730369744,7.22,232.38,232.34,3.56450335]
[1759730370353,108.8916,232.39,232.34,3.56450335]
[1759730370753,7.22,232.38,232.34,3.56450335]
[1759730370954,3.8719,232.38,232.34,3.56450335]
[1759730371154,7.22,232.37,232.34,3.56450335]
[1759730371764,3.8719,232.38,232.34,3.56450335]
[1759730371966,7.22,232.35,232.34,3.56450335]
[1759730373864,3.8722,232.36,232.33,3.56450335]
[1759730374167,7.97,232.35,232.33,3.56450335]
[1759730374360,3.8722,232.36,232.33,3.56450335]
[1759730374556,7.97,232.35,232.33,3.56450335]
[1759730374764,3.8722,232.36,232.33,3.56450335]
[1759730375262,7.97,232.35,232.33,3.56450335]
[1759730375458,3.8722,232.36,232.33,3.56450335]
[1759730375657,7.97,232.35,232.33,3.56450335]
[1759730377067,7.97,232.35,232.33,7.47450335]
[1759730377268,7.97,232.35,232.33,3.56450335]
[1759730377467,3.8722,232.36,232.33,3.56450335]
[1759730377969,7.97,232.35,232.33,3.56450335]
[1759730379469,3.8722,232.36,232.33,3.56450335]
[1759730379666,7.97,232.35,232.33,3.56450335]
[1759730380358,3.8722,232.36,232.33,3.56450335]
[1759730380762,7.97,232.35,232.33,3.56450335]
[1759730381172,3.8722,232.36,232.33,3.56450335]
[1759730381369,7.97,232.35,232.33,3.56450335]
[1759730382467,3.8722,232.36,232.33,3.56450335]
[1759730383171,7.97,232.35,232.33,3.56450335]
[1759730385473,3.8722,232.36,232.33,3.56450335]
[1759730385679,7.97,232.35,232.33,3.56450335]
[1759730387263,3.8722,232.36,232.33,3.56450335]
[1759730387872,7.64,232.35,232.33,3.56450335]
[1759730388268,3.8722,232.36,232.33,3.56450335]
[1759730388474,7.64,232.35,232.33,3.56450335]
[1759730388974,3.8722,232.36,232.33,3.56450335]
[1759730389174,7.64,232.35,232.33,3.56450335]
[1759730389371,3.8722,232.36,232.33,3.56450335]
[1759730389770,7.64,232.35,232.33,3.56450335]
[1759730391176,7.64,232.35,232.33,7.47450335]
[1759730399477,85.96,232.37,232.34,3.91]
[1759730399478,93.6,232.37,232.34,3.91]
[1759730400774,85.96,232.37,232.33,7.43700335]
[1759730400977,7.64,232.41,232.33,7.43700335]
[1759730401173,11.5117,232.39,232.33,11.34700335]
[1759730401474,7.64,232.37,232.34,3.91]
[1759730402373,7.64,232.37,232.34,7.47450335]
[1759730402974,7.64,232.39,232.36,3.56450335]
[1759730403270,24.36,232.42,232.37,3.91]
[1759730403475,7.64,232.4,232.37,3.91]
[1759730405379,3.41086908,232.41,232.37,3.8718]
[1759730405582,24.36,232.42,232.37,3.91]
[1759730406074,24.36,232.42,232.36,3.56450335]
[1759730406472,32.0,232.42,232.36,11.34650335]
[1759730406681,32.0,232.42,232.36,7.47450335]
[1759730407476,7.64,232.41,232.38,7.7817]
[1759730409484,7.64,232.41,232.39,7.7815]
[1759730409673,32.0,232.42,232.39,7.7815]
[1759730410082,7.64,232.41,232.39,7.7815]
[1759730410784,7.64,232.41,232.39,3.91]
[1759730410981,7.64,232.41,232.37,7.7819]
[1759730411184,7.64,232.41,232.37,3.8719]
[1759730411481,7.64,232.41,232.38,7.7817]
[1759730412184,7.64,232.41,232.39,7.7815]
[1759730412385,24.36,232.42,232.36,3.56450335]
[1759730412586,32.0,232.42,232.37,3.56450335]
[1759730412884,24.36,232.42,232.4,3.8713]
[1759730413184,24.36,232.42,232.41,3.91]
[1759730413388,7.64,232.47,232.41,3.91]
[1759730413587,11.04608799,232.47,232.41,3.91]
[1759730414588,11.04608799,232.47,232.41,7.7811]
[1759730414787,11.04608799,232.47,232.41,3.91]
[1759730415689,7.64,232.48,232.42,7.781]
[1759730415889,11.0443533,232.48,232.42,7.781]
[1759730418691,7.64,232.48,232.42,7.781]
[1759730418892,11.0423279,232.48,232.42,7.781]
[1759730422986,7.64,232.48,232.42,7.781]
[1759730427190,112.46,232.48,232.42,7.781]
[1759730427390,112.46,232.48,232.42,3.91]
[1759730427691,112.46,232.48,232.32,60.2427]
[1759730427692,7.29,232.42,232.35,3.56450335]
[1759730427897,7.29,232.39,232.33,3.56450335]
[1759730428695,7.29,232.39,232.33,7.43700335]
[1759730429399,7.29,232.39,232.35,3.9]